fUST/lending_fUST_20250618
["ID","MTS","AMOUNT","RATE_DAILY","PERIOD"]
[366451694,1750260666718,-3000.0,0.0002413,30]
[366451695,1750260666728,-3000.0,0.0002413,2]
[366451696,1750260666737,-3000.0,0.0002413,2]
[366451697,1750260666747,-500.0,0.00024138,2]
[366451698,1750260666757,-3428.618443,0.0002414,30]
[366451699,1750260666767,-3000.0,0.0002414,2]
[366451700,1750260666776,-3000.0,0.0002414,2]
[366451701,1750260666786,-3000.0,0.0002415,2]
[366451702,1750260666795,-3000.0,0.0002416,2]
[366451703,1750260666805,-191.0,0.00024164,7]
[366451704,1750260666815,-3000.0,0.0002417,2]
[366451705,1750260666825,-2458.97213424,0.00024176,10]
[366451706,1750260666834,-3000.0,0.0002418,2]
[366451707,1750260666933,-4714.473773,0.0002419,2]
[366451708,1750260666943,-1107.09,0.000242,7]
[366451709,1750260666953,-315.48910325,0.000242,30]
[366451710,1750260666962,-1763.63,0.00024211,2]
[366451711,1750260666972,-600.0,0.00024214,2]
[366451712,1750260666982,-151.0,0.00024261,7]
[366451713,1750260666991,-365.5483814,0.00024274,2]
[366451714,1750260667001,-844.2294656,0.00024274,2]
[366451715,1750260667011,-306.60933394,0.00024294,2]
[366451716,1750260667020,-5000.0,0.00024296,2]
[366451717,1750260667030,-25000.0,0.00024296,2]
[366451718,1750260667039,-151.0,0.00024296,7]
[366451719,1750260667049,-151.0,0.00024296,7]
[366451720,1750260667059,-2458.97213424,0.00024348,11]
[366451721,1750260667068,-690.78322901,0.00024381,2]
[366451722,1750260667078,-417.39472332,0.00024383,6]
[366451723,1750260667088,-440.0,0.00024383,6]
[366451724,1750260667097,-460.0,0.00024383,6]
[366451725,1750260667106,-460.0,0.00024383,6]
[366451726,1750260667116,-460.0,0.00024383,6]
[366451727,1750260667125,-460.0,0.00024383,6]
[366451728,1750260667134,-460.0,0.00024383,6]
[366451729,1750260667143,-460.0,0.00024383,6]
[366451730,1750260667153,-151.0,0.00024383,7]
[366451731,1750260667162,-230.0,0.00024383,6]
[366451732,1750260667171,-153.646742,0.00024383,7]
[366451733,1750260667181,-460.0,0.00024383,6]
[366451734,1750260667191,-460.0,0.00024383,6]
[366451735,1750260667200,-460.0,0.00024383,6]
[366451736,1750260667210,-194.36761753,0.00024383,6]
[366451737,1750260667220,-700.32,0.00024383,2]
[366451738,1750260667229,-360.0,0.00024383,6]
[366451739,1750260667239,-460.0,0.00024383,6]
[366451740,1750260667249,-1004.44,0.00024383,6]
[366451741,1750260667258,-460.0,0.00024383,6]
[366451742,1750260667268,-808.69,0.00024383,6]
[366451743,1750260667278,-1102.54,0.00024383,6]
[366451744,1750260667288,-460.0,0.00024383,6]
[366451745,1750260667298,-460.0,0.00024383,6]
[366451746,1750260667308,-218.74280657,0.00024383,6]
[366451747,1750260667318,-460.0,0.00024383,6]
[366451748,1750260667327,-536.45295313,0.00024383,6]
[366451749,1750260667337,-460.0,0.00024383,6]
[366451750,1750260667346,-460.0,0.00024383,6]
[366451751,1750260667356,-460.0,0.00024383,6]
[366451752,1750260667366,-460.0,0.00024383,6]
[366451753,1750260667376,-276.92214919,0.00024383,6]
[366451754,1750260667386,-590.23,0.00024383,6]
[366451755,1750260667396,-460.0,0.00024383,6]
[366451756,1750260667405,-460.0,0.00024383,6]
[366451757,1750260667415,-409.96888312,0.00024383,6]
[366451758,1750260667424,-476.75,0.00024383,6]
[366451759,1750260667434,-460.0,0.00024383,6]
[366451760,1750260667444,-731.77,0.00024383,6]
[366451761,1750260667454,-460.0,0.00024383,6]
[366451762,1750260667464,-460.0,0.00024383,6]
[366451763,1750260667474,-650.41,0.00024383,6]
[366451764,1750260667484,-4300.63,0.00024383,6]
[366451765,1750260667493,-460.0,0.00024383,6]
[366451766,1750260667503,-460.0,0.00024383,6]
[366451767,1750260667513,-617.94,0.00024383,6]
[366451768,1750260667525,-5166.9,0.00024383,6]
[366451769,1750260667535,-460.0,0.00024383,6]
[366451770,1750260667545,-604.11,0.00024383,6]
[366451771,1750260667555,-460.0,0.00024383,6]
[366451772,1750260667566,-1472.69,0.00024383,6]
[366451773,1750260667575,-1192.98,0.00024383,6]
[366451774,1750260667585,-460.0,0.00024383,6]
[366451775,1750260667595,-640.01,0.00024383,6]
[366451776,1750260667605,-460.0,0.00024383,6]
[366451777,1750260667614,-737.82,0.00024383,6]
[366451778,1750260667624,-151.0,0.00024383,7]
[366451779,1750260667634,-896.7,0.00024383,6]
[366451780,1750260667644,-460.0,0.00024383,6]
[366451781,1750260667653,-577.74,0.00024383,6]
[366451782,1750260667663,-1148.27,0.00024383,6]
[366451783,1750260667672,-460.0,0.00024383,6]
[366451784,1750260667682,-460.0,0.00024383,6]
[366451785,1750260667691,-687.11,0.00024383,6]
[366451786,1750260667701,-712.31,0.00024383,6]
[366451787,1750260667711,-460.0,0.00024383,6]
[366451788,1750260667720,-1301.24,0.00024383,6]
[366451789,1750260667730,-6101.64,0.00024383,6]
[366451790,1750260667740,-1901.84,0.00024383,6]
[366451791,1750260667750,-981.89,0.00024383,6]
[366451792,1750260667759,-526.75265381,0.00024383,6]
[366451793,1750260667769,-812.2,0.00024383,6]
[366451794,1750260667778,-476.88,0.00024383,6]
[366451795,1750260667788,-598.28,0.00024383,6]
[366451796,1750260667798,-599.4,0.00024383,6]
[366451797,1750260667808,-1051.25,0.00024383,6]
[366451798,1750260667819,-2727.34,0.00024383,6]
[366451799,1750260667828,-151.0,0.00024383,7]
[366451800,1750260667837,-1429.77,0.00024383,6]
[366451801,1750260667847,-3939.01,0.00024383,6]
[366451802,1750260667856,-1672.92,0.00024383,6]
[366451803,1750260667865,-1046.42,0.00024383,6]
[366451804,1750260667875,-460.0,0.00024383,6]
[366451805,1750260667884,-460.0,0.00024383,6]
[366451806,1750260667894,-460.0,0.00024383,6]
[366451807,1750260667903,-5265.14,0.00024383,6]
[366451808,1750260667913,-1169.53,0.00024383,6]
[366451809,1750260667923,-548.88,0.00024383,6]
[366451810,1750260667932,-531.64,0.00024383,6]
[366451811,1750260667942,-460.0,0.00024383,6]
[366451812,1750260667952,-460.0,0.00024383,6]
[366451813,1750260667961,-1558.17,0.00024383,6]
[366451814,1750260667971,-793.61,0.00024383,6]
[366451815,1750260667980,-5738.3,0.00024383,6]
[366451816,1750260667990,-541.37223141,0.00024383,6]
[366451817,1750260668000,-460.0,0.00024383,6]
[366451818,1750260668009,-460.0,0.00024383,6]
[366451819,1750260668019,-720.08,0.00024383,6]
[366451820,1750260668028,-2951.1,0.00024383,6]
[366451821,1750260668038,-730.47,0.00024383,6]
[366451822,1750260668048,-963.43,0.00024383,6]
[366451823,1750260668058,-460.0,0.00024383,6]
[366451824,1750260668069,-586.04,0.00024383,6]
[366451825,1750260668078,-460.0,0.00024383,6]
[366451826,1750260668089,-2024.67,0.00024383,6]
[366451827,1750260668099,-624.18,0.00024383,6]
[366451828,1750260668109,-466.82,0.00024383,6]
[366451829,1750260668122,-3707.14,0.00024383,6]
[366451830,1750260668132,-965.25,0.00024383,6]
[366451831,1750260668142,-1615.37,0.00024383,6]
[366451832,1750260668152,-382.2394101,0.00024383,6]
[366451833,1750260668163,-841.17,0.00024383,6]
[366451834,1750260668173,-460.0,0.00024383,6]
[366451835,1750260668182,-1070.72,0.00024383,6]
[366451836,1750260668193,-460.0,0.00024383,6]
[366451837,1750260668203,-1780.78,0.00024383,6]
[366451838,1750260668212,-1090.64,0.00024383,6]
[366451839,1750260668222,-460.0,0.00024383,6]
[366451840,1750260668233,-578.09,0.00024383,6]
[366451841,1750260668242,-989.59,0.00024383,6]
[366451842,1750260668252,-693.04,0.00024383,6]
[366451843,1750260668262,-606.16,0.00024383,6]
[366451844,1750260668272,-1207.43,0.00024383,6]
[366451845,1750260668282,-1147.33,0.00024383,6]
[366451846,1750260668291,-460.0,0.00024383,6]
[366451847,1750260668300,-4607.53,0.00024383,6]
[366451848,1750260668310,-2605.62,0.00024383,6]
[366451849,1750260668321,-460.0,0.00024383,6]
[366451850,1750260668331,-460.0,0.00024383,6]
[366451851,1750260668341,-2097.84,0.000244,7]
[366451852,1750260668350,-151.0,0.00024401,7]
[366451853,1750260668359,-306.0,0.00024411,2]
[366451854,1750260668368,-317.8616018,0.00024411,2]
[366451855,1750260668378,-177.0323298,0.00024411,2]
[366451856,1750260668387,-574.2153043,0.00024411,2]
[366451857,1750260668397,-574.2153043,0.00024411,2]
[366451858,1750260668407,-515.3103067,0.00024411,2]
[366451859,1750260668416,-151.0,0.00024411,7]
[366451860,1750260668425,-1507.23650433,0.00024416,2]
[366451861,1750260668435,-2400.0,0.00024416,2]
[366451862,1750260668445,-504.08159758,0.00024416,2]
[366451863,1750260668455,-500.0,0.00024442,2]
[366451864,1750260668464,-1063.24869493,0.00024466,2]
[366451865,1750260668474,-1000.0,0.000245,2]
[366451866,1750260668483,-28935.1023937,0.000245,7]
[366451867,1750260668493,-151.0,0.00024501,7]
[366451868,1750260668503,-500.0,0.00024514,2]
[366451869,1750260668513,-1000.0,0.00024521,2]
[366451870,1750260668527,-2458.97213424,0.00024521,11]
[366451871,1750260668536,-306.60933394,0.00024569,2]
[366451872,1750260668546,-500.0,0.00024571,2]
[366451873,1750260668555,-500.0,0.00024592,2]
[366451874,1750260668564,-3813.0,0.0002462,2]
[366451875,1750260668573,-500.0,0.00024656,7]
[366451876,1750260668583,-160.0,0.00024656,2]
[366451877,1750260668592,-400.0,0.00024657,6]
[366451878,1750260668603,-460.0,0.00024657,6]
[366451879,1750260668612,-460.0,0.00024657,6]
[366451880,1750260668622,-460.0,0.00024657,6]
[366451881,1750260668636,-263.28085363,0.00024657,4]
[366451882,1750260668645,-460.0,0.00024657,6]
[366451883,1750260668655,-460.0,0.00024657,6]
[366451884,1750260668665,-460.0,0.00024657,6]
[366451885,1750260668674,-460.0,0.00024657,6]
[366451886,1750260668684,-460.0,0.00024657,6]
[366451887,1750260668694,-700.32,0.00024657,2]
[366451888,1750260668703,-460.0,0.00024657,6]
[366451889,1750260668712,-151.0,0.00024657,7]
[366451890,1750260668722,-1004.44,0.00024657,6]
[366451891,1750260668731,-808.69,0.00024657,6]
[366451892,1750260668741,-1102.54,0.00024657,6]
[366451893,1750260668750,-460.0,0.00024657,6]
[366451894,1750260668760,-460.0,0.00024657,6]
[366451895,1750260668856,-265.96854382,0.00024657,6]
[366451896,1750260668874,-460.0,0.00024657,6]
[366451897,1750260668884,-460.0,0.00024657,6]
[366451898,1750260668894,-460.0,0.00024657,6]
[366451899,1750260668904,-460.0,0.00024657,6]
[366451900,1750260668914,-590.23,0.00024657,6]
[366451901,1750260668923,-460.0,0.00024657,6]
[366451902,1750260668931,-460.0,0.00024657,6]
[366451903,1750260668939,-151.0,0.00024657,7]
[366451904,1750260668948,-476.75,0.00024657,6]
[366451905,1750260668957,-460.0,0.00024657,6]
[366451906,1750260668967,-731.77,0.00024657,6]
[366451907,1750260668978,-496.72909165,0.00024657,6]
[366451908,1750260668991,-460.0,0.00024657,6]
[366451909,1750260669008,-650.41,0.00024657,6]
[366451910,1750260669024,-4300.63,0.00024657,6]
[366451911,1750260669034,-460.0,0.00024657,6]
[366451912,1750260669043,-460.0,0.00024657,6]
[366451913,1750260669052,-617.94,0.00024657,6]
[366451914,1750260669063,-5166.9,0.00024657,6]
[366451915,1750260669072,-460.0,0.00024657,6]
[366451916,1750260669082,-604.11,0.00024657,6]
[366451917,1750260669093,-460.0,0.00024657,6]
[366451918,1750260669102,-1472.69,0.00024657,6]
[366451919,1750260669112,-1192.98,0.00024657,6]
[366451920,1750260669121,-460.0,0.00024657,6]
[366451921,1750260669131,-640.01,0.00024657,6]
[366451922,1750260669140,-460.0,0.00024657,6]
[366451923,1750260669149,-737.82,0.00024657,6]
[366451924,1750260669159,-896.7,0.00024657,6]
[366451925,1750260669167,-460.0,0.00024657,6]
[366451926,1750260669177,-577.74,0.00024657,6]
[366451927,1750260669187,-1148.27,0.00024657,6]
[366451928,1750260669196,-460.0,0.00024657,6]
[366451929,1750260669206,-460.0,0.00024657,6]
[366451930,1750260669215,-687.11,0.00024657,6]
[366451931,1750260669225,-712.31,0.00024657,6]
[366451932,1750260669234,-460.0,0.00024657,6]
[366451933,1750260669243,-1301.24,0.00024657,6]
[366451934,1750260669253,-6101.64,0.00024657,6]
[366451935,1750260669262,-1901.84,0.00024657,6]
[366451936,1750260669272,-981.89,0.00024657,6]
[366451937,1750260669281,-812.2,0.00024657,6]
[366451938,1750260669290,-476.88,0.00024657,6]
[366451939,1750260669299,-598.28,0.00024657,6]
[366451940,1750260669308,-599.4,0.00024657,6]
[366451941,1750260669319,-1051.25,0.00024657,6]
[366451942,1750260669329,-2727.34,0.00024657,6]
[366451943,1750260669339,-1429.77,0.00024657,6]
[366451944,1750260669348,-3939.01,0.00024657,6]
[366451945,1750260669358,-1672.92,0.00024657,6]
[366451946,1750260669367,-1046.42,0.00024657,6]
[366451947,1750260669376,-460.0,0.00024657,6]
[366451948,1750260669386,-462.72372557,0.00024657,6]
[366451949,1750260669396,-460.0,0.00024657,6]
[366451950,1750260669406,-5265.14,0.00024657,6]
[366451951,1750260669415,-1169.53,0.00024657,6]
[366451952,1750260669425,-548.88,0.00024657,6]
[366451953,1750260669434,-531.64,0.00024657,6]
[366451954,1750260669444,-460.0,0.00024657,6]
[366451955,1750260669453,-1558.17,0.00024657,6]
[366451956,1750260669463,-793.61,0.00024657,6]
[366451957,1750260669473,-5738.3,0.00024657,6]
[366451958,1750260669483,-460.0,0.00024657,6]
[366451959,1750260669493,-460.0,0.00024657,6]
[366451960,1750260669503,-720.08,0.00024657,6]
[366451961,1750260669513,-2951.1,0.00024657,6]
[366451962,1750260669525,-730.47,0.00024657,6]
[366451963,1750260669535,-963.43,0.00024657,6]
[366451964,1750260669545,-460.0,0.00024657,6]
[366451965,1750260669555,-586.04,0.00024657,6]
[366451966,1750260669566,-460.0,0.00024657,6]
[366451967,1750260669576,-2024.67,0.00024657,6]
[366451968,1750260669586,-624.18,0.00024657,6]
[366451969,1750260669597,-466.82,0.00024657,6]
[366451970,1750260669607,-3707.14,0.00024657,6]
[366451971,1750260669616,-965.25,0.00024657,6]
[366451972,1750260669626,-1615.37,0.00024657,6]
[366451973,1750260669635,-300.0,0.00024657,4]
[366451974,1750260669644,-841.17,0.00024657,6]
[366451975,1750260669654,-460.0,0.00024657,6]
[366451976,1750260669663,-1070.72,0.00024657,6]
[366451977,1750260669673,-460.0,0.00024657,6]
[366451978,1750260669683,-1780.78,0.00024657,6]
[366451979,1750260669693,-151.0,0.00024657,7]
[366451980,1750260669703,-1090.64,0.00024657,6]
[366451981,1750260669713,-460.0,0.00024657,6]
[366451982,1750260669722,-187.731642,0.00024657,7]
[366451983,1750260669731,-578.09,0.00024657,6]
[366451984,1750260669741,-989.59,0.00024657,6]
[366451985,1750260669750,-693.04,0.00024657,6]
[366451986,1750260669760,-606.16,0.00024657,6]
[366451987,1750260669769,-1207.43,0.00024657,6]
[366451988,1750260669781,-151.0,0.00024657,7]
[366451989,1750260669791,-460.0,0.00024657,6]
[366451990,1750260669800,-1147.33,0.00024657,6]
[366451991,1750260669809,-4607.53,0.00024657,6]
[366451992,1750260669821,-2605.62,0.00024657,6]
[366451993,1750260669831,-460.0,0.00024657,6]
[366451994,1750260669840,-460.0,0.00024657,6]
[366451995,1750260669851,-442.23296399,0.00024658,2]
[366451996,1750260669861,-500.0,0.00024658,2]
[366451997,1750260669871,-2500.0,0.00024664,2]
[366451998,1750260669881,-800.0,0.00024671,2]
[366451999,1750260669891,-453.2312045,0.00024685,2]
[366452000,1750260669901,-500.0,0.00024685,2]
[366452001,1750260669911,-2458.97213424,0.00024693,11]
[366452002,1750260669921,-90441.69,0.000247,2]
[366452003,1750260669931,-35557.29564125,0.000247,7]
[366452004,1750260674227,-10907.19214268,0.000247,7]
[366452005,1750260674546,-658.9,0.00021907,3]
[366452006,1750260674556,-460.0,0.00021917,6]
[366452007,1750260674567,-460.0,0.00021917,2]
[366452008,1750260674577,-460.0,0.00021917,6]
[366452009,1750260674587,-430.0,0.00021917,6]
[366452010,1750260674599,-460.0,0.00022191,6]
[366452011,1750260674610,-121.1,0.00022191,2]
[366452012,1750260675628,-460.0,0.00021917,6]
[366452013,1750260675638,-256.20949522,0.00021917,6]
[366452014,1750260675654,-203.79050478,0.00021917,6]
[366452015,1750260675664,-433.08403681,0.00021917,6]
[366452016,1750260675674,-271.31844477,0.00021917,6]
[366452017,1750260676302,-188.68155523,0.00021917,6]
[366452018,1750260676315,-460.0,0.00021917,6]
[366452019,1750260676326,-338.9,0.00022191,2]
[366452020,1750260676335,-460.0,0.00022191,6]
[366452021,1750260676345,-460.0,0.00022191,6]
[366452022,1750260676355,-460.0,0.00022465,6]
[366452023,1750260676364,-460.0,0.00022465,2]
[366452024,1750260676373,-283.01819121,0.00022465,6]
[366452025,1750260676390,-176.98180879,0.00022465,6]
[366452026,1750260676399,-246.69,0.00022465,6]
[366452027,1750260676408,-460.0,0.00022739,6]
[366452028,1750260676418,-460.0,0.00022739,2]
[366452029,1750260676427,-460.0,0.00023013,6]
[366452030,1750260676437,-460.0,0.00023013,2]
[366452031,1750260676446,-653.0,0.00023254,2]
[366452032,1750260676456,-1317.8,0.00023277,3]
[366452033,1750260676466,-460.0,0.00023287,6]
[366452034,1750260676475,-249.12000506,0.00023561,6]
[366452035,1750260676485,-8596.32364747,0.000247,7]
[366452041,1750260845381,500.0,0.00025225,120]
[366452042,1750260853367,500.0,0.00025225,120]
[366452043,1750260861453,500.0,0.00025225,120]
[366452044,1750260867975,500.0,0.00025225,120]
[366452045,1750260892380,500.0,0.00025225,120]
[366452046,1750260914557,500.0,0.00025225,120]
[366452047,1750260981703,768.625,0.00025225,120]
[366452048,1750261132206,231.40043276,0.00018548,2]
[366452191,1750261270490,161.880153,0.00013699,2]
[366452255,1750261634096,-225.58729562,0.00019274,2]
[366452256,1750261634119,-160.0,0.00019564,2]
[366452257,1750261634143,-184.79876538,0.00019755,2]
[366452258,1750261649205,-557.15609786,0.00019573,2]
[366452260,1750261747214,347.135773,0.00019072,2]
[366452261,1750261748335,-270.70475475,0.00019452,2]
[366452262,1750261748359,-1081.69524525,0.00019775,2]
[366452263,1750261751093,-172.30475475,0.00019775,2]
[366452264,1750261751116,-864.2992677,0.00019977,2]
[366452265,1750261751138,-300.0,0.00020052,2]
[366452266,1750261751162,-500.0,0.00020053,2]
[366452267,1750261751189,-500.0,0.00020053,2]
[366452268,1750261751215,-500.0,0.00020053,2]
[366452269,1750261751241,-500.0,0.00020053,2]
[366452270,1750261751269,-500.0,0.00020053,2]
[366452271,1750261751295,-500.0,0.00020053,2]
[366452272,1750261751322,-500.0,0.00020053,2]
[366452273,1750261751350,-500.0,0.00020053,2]
[366452274,1750261751378,-500.0,0.00020053,2]
[366452275,1750261751406,-368.59034662,0.00020053,2]
[366452276,1750261751433,-500.0,0.00020053,2]
[366452277,1750261751458,-500.0,0.00020053,2]
[366452278,1750261751484,-500.0,0.00020053,2]
[366452279,1750261751510,-500.0,0.00020053,2]
[366452280,1750261751535,-500.0,0.00020053,2]
[366452281,1750261751557,-24277.37292025,0.00020054,2]
[366452282,1750261752128,-622.62707975,0.00020054,2]
[366452283,1750261752151,-766.1209014,0.0002013,2]
[366452284,1750261752174,-441.66252879,0.00020261,2]
[366452285,1750261752196,-323.29730118,0.00020261,2]
[366452286,1750261752220,-2938.1870257,0.00020289,2]
[366452287,1750261752243,-640.5285468,0.00020341,2]
[366452288,1750261752266,-181.717641,0.00020403,2]
[366452289,1750261752289,-2947.17638111,0.0002048,2]
[366452290,1750261752311,-235.3532387,0.0002048,2]
[366452291,1750261752333,-376.8327122,0.00020499,2]
[366452292,1750261752354,-500.0,0.00020647,2]
[366452293,1750261752377,-160.0,0.00020647,2]
[366452294,1750261752399,-300.0,0.00020812,2]
[366452295,1750261752421,-666.0,0.00020813,2]
[366452296,1750261752442,-500.0,0.00021195,3]
[366452297,1750261752464,-161.880153,0.00021404,2]
[366452298,1750261752488,-2508.01,0.00021572,2]
[366452299,1750261752509,-302.87134229,0.00021717,2]
[366452300,1750261752531,-554.05,0.00021743,4]
[366452301,1750261752553,-302.87134227,0.00021767,2]
[366452302,1750261752576,-500.0,0.00021816,2]
[366452303,1750261752597,-465.98928895,0.00021816,2]
[366452304,1750261752621,-207.591,0.00021816,2]
[366452305,1750261752644,-19835.10127078,0.00021817,3]
[366452306,1750261752667,-12542.39314967,0.00021817,3]
[366452307,1750261752690,-845.78193577,0.00021817,3]
[366452308,1750261752712,-160.0,0.00021817,3]
[366452309,1750261752734,-213.43818883,0.00021817,3]
[366452310,1750261752758,-316.66957009,0.00021817,2]
[366452311,1750261752780,-302.87134227,0.00021817,2]
[366452312,1750261752803,-420.0,0.00021833,2]
[366452313,1750261752824,-300.0,0.00021887,2]
[366452314,1750261752861,-803.59947935,0.000219,6]
[366452315,1750261752885,-887.44,0.00021904,10]
[366452316,1750261752911,-646.04,0.00021904,10]
[366452317,1750261752935,-329.45,0.00021907,3]
[366452318,1750261752959,-164.72,0.00021907,3]
[366452319,1750261752982,-494.2,0.00021907,3]
[366452320,1750261753006,-845.78193577,0.00021914,2]
[366452321,1750261753029,-12542.39314967,0.00021914,2]
[366452322,1750261753051,-160.0,0.00021914,2]
[366452323,1750261753075,-424.70586748,0.00021914,2]
[366452324,1750261753099,-160.0,0.00021914,2]
[366452325,1750261753124,-229.98435572,0.00021914,2]
[366452326,1750261753147,-835.98428123,0.00021914,2]
[366452327,1750261753170,-213.43818883,0.00021914,2]
[366452328,1750261753193,-160.0,0.00021914,2]
[366452329,1750261753216,-3078.24929469,0.00021914,2]
[366452330,1750261753239,-460.0,0.00021917,6]
[366452331,1750261753261,-460.0,0.00021917,6]
[366452332,1750261753282,-460.0,0.00021917,6]
[366452333,1750261753304,-460.0,0.00021917,6]
[366452334,1750261753326,-460.0,0.00021917,6]
[366452335,1750261753348,-440.0,0.00021917,6]
[366452336,1750261753370,-460.0,0.00021917,6]
[366452337,1750261753392,-884.12357598,0.00021917,6]
[366452338,1750261753414,-430.0,0.00021917,6]
[366452339,1750261753436,-460.0,0.00021917,6]
[366452340,1750261753458,-460.0,0.00021917,6]
[366452341,1750261753481,-460.0,0.00021917,6]
[366452342,1750261753506,-382.4391348,0.00021917,6]
[366452343,1750261753530,-460.0,0.00021917,6]
[366452344,1750261753552,-403.41872707,0.00021917,6]
[366452345,1750261753574,-460.0,0.00021917,6]
[366452346,1750261753597,-460.40106411,0.00021917,6]
[366452347,1750261753619,-460.0,0.00021917,6]
[366452348,1750261753642,-430.0,0.00021917,6]
[366452349,1750261753663,-460.0,0.00021917,6]
[366452350,1750261753685,-460.0,0.00021917,6]
[366452351,1750261753707,-460.0,0.00021917,6]
[366452352,1750261753729,-460.0,0.00021917,6]
[366452353,1750261753753,-460.0,0.00021917,6]
[366452354,1750261753775,-460.0,0.00021917,6]
[366452355,1750261753797,-460.0,0.00021917,6]
[366452356,1750261753820,-441.44435515,0.00021917,6]
[366452357,1750261753842,-460.0,0.00021917,6]
[366452358,1750261753866,-436.42402116,0.00021917,6]
[366452359,1750261753888,-500.0,0.00021917,2]
[366452360,1750261753911,-430.0,0.00021917,6]
[366452361,1750261753935,-460.0,0.00021917,6]
[366452362,1750261753958,-448.39934193,0.00021917,6]
[366452363,1750261753982,-460.0,0.00021917,6]
[366452364,1750261754005,-460.0,0.00021917,6]
[366452365,1750261754030,-460.0,0.00021917,6]
[366452366,1750261754054,-441.14715099,0.00021917,6]
[366452367,1750261754078,-460.0,0.00021917,6]
[366452368,1750261754103,-432.76367698,0.00021917,6]
[366452369,1750261754127,-460.0,0.00021917,6]
[366452370,1750261754149,-450.0,0.00021917,6]
[366452371,1750261754172,-460.0,0.00021917,6]
[366452372,1750261754196,-460.0,0.00021917,6]
[366452373,1750261754219,-460.0,0.00021917,6]
[366452374,1750261754242,-460.0,0.00021917,6]
[366452375,1750261754266,-460.0,0.00021917,6]
[366452376,1750261754290,-460.0,0.00021917,6]
[366452377,1750261754313,-460.0,0.00021917,6]
[366452378,1750261754335,-460.0,0.00021917,6]
[366452379,1750261754358,-460.0,0.00021917,6]
[366452380,1750261754380,-460.0,0.00021917,6]
[366452381,1750261754402,-460.0,0.00021917,6]
[366452382,1750261754424,-450.32964236,0.00021917,6]
[366452383,1750261754447,-460.0,0.00021917,6]
[366452384,1750261754469,-460.0,0.00021917,6]
[366452385,1750261754491,-402.48589926,0.00021917,6]
[366452386,1750261754514,-460.0,0.00021917,6]
[366452387,1750261754536,-460.0,0.00021917,6]
[366452388,1750261754559,-460.0,0.00021917,6]
[366452389,1750261754582,-440.68186825,0.00021917,6]
[366452390,1750261754604,-340.09597348,0.00021917,6]
[366452391,1750261754629,-440.0,0.00021917,6]
[366452392,1750261754653,-460.0,0.00021917,5]
[366452393,1750261754677,-460.0,0.00021917,6]
[366452394,1750261754703,-460.0,0.00021917,6]
[366452395,1750261754725,-460.0,0.00021917,6]
[366452396,1750261754750,-419.87296321,0.00021917,6]
[366452397,1750261754774,-460.0,0.00021917,6]
[366452398,1750261754797,-460.0,0.00021917,6]
[366452399,1750261754821,-210.28283942,0.00021917,6]
[366452400,1750261754845,-300.0,0.00021917,6]
[366452401,1750261755015,-460.0,0.00021917,6]
[366452402,1750261755039,-460.0,0.00021917,6]
[366452403,1750261755064,-440.0,0.00021917,6]
[366452404,1750261755088,-400.0,0.00021917,6]